lending/lending_fUSD_20250406
["ID","MTS","AMOUNT","RATE_DAILY","PERIOD"]
[357273728,1743971073082,-500.0,0.00054794,120]
[357273729,1743971073122,-500.0,0.00054794,120]
[357273730,1743971073318,-500.0,0.00054794,120]
[357273731,1743971073363,-1509.77,0.00054794,120]
[357273732,1743971073406,-500.0,0.00054794,120]
[357273733,1743971073449,-289.11359728,0.00054794,120]
[357273734,1743971073489,-2369.28,0.00054794,120]
[357273735,1743971073533,-500.0,0.00054794,120]
[357273736,1743971073575,-500.0,0.00054794,120]
[357273737,1743971073619,-500.0,0.00054794,120]
[357273738,1743971073661,-603.84,0.00054794,120]
[357273739,1743971073703,-500.0,0.00054794,120]
[357273740,1743971073744,-500.0,0.00054794,120]
[357273741,1743971073785,-500.0,0.00054794,120]
[357273742,1743971073823,-611.14246178,0.00054794,120]
[357273743,1743971073861,-500.0,0.00054794,120]
[357273744,1743971073899,-1000.0,0.00054794,120]
[357273745,1743971073937,-500.0,0.00054794,120]
[357273746,1743971073976,-500.0,0.00054794,120]
[357273747,1743971074015,-506.85,0.00054794,120]
[357273748,1743971074054,-500.0,0.00054794,120]
[357273749,1743971074092,-500.0,0.00054794,120]
[357273750,1743971074131,-500.0,0.00054794,120]
[357273751,1743971074172,-588.26,0.00054794,120]
[357273752,1743971074211,-500.0,0.00054794,120]
[357273753,1743971074252,-500.0,0.00054794,120]
[357273754,1743971074295,-500.0,0.00054794,120]
[357273755,1743971074339,-500.0,0.00054794,120]
[357273756,1743971074381,-500.0,0.00054794,120]
[357273757,1743971074423,-500.0,0.00054794,120]
[357273758,1743971074464,-500.0,0.00054794,120]
[357273759,1743971074506,-500.0,0.00054794,120]
[357273760,1743971074545,-1000.0,0.00054794,120]
[357273761,1743971074583,-1000.0,0.00054794,120]
[357273762,1743971074622,-700.22,0.00054794,120]
[357273763,1743971074659,-2371.3,0.00054794,120]
[357273764,1743971074698,-500.0,0.00054794,120]
[357273765,1743971074736,-500.0,0.00054794,120]
[357273766,1743971074774,-500.0,0.00054794,120]
[357273767,1743971074811,-500.0,0.00054794,120]
[357273768,1743971074849,-500.0,0.00054794,120]
[357273769,1743971074886,-271.74,0.00054794,120]
[357273770,1743971074923,-546.06,0.00054794,120]
[357273771,1743971074960,-500.0,0.00054794,120]
[357273772,1743971074996,-719.59,0.00054794,120]
[357273773,1743971075034,-719.59,0.00054794,120]
[357273774,1743971075070,-719.59,0.00054794,120]
[357273775,1743971075111,-719.59,0.00054794,120]
[357273776,1743971075150,-500.0,0.00054794,120]
[357273777,1743971075189,-719.59,0.00054794,120]
[357273778,1743971075227,-719.59,0.00054794,120]
[357273779,1743971075268,-500.0,0.00054794,120]
[357273780,1743971075307,-500.0,0.00054794,120]
[357273781,1743971075348,-658.27,0.00054794,120]
[357273782,1743971075387,-500.0,0.00054794,120]
[357273783,1743971075427,-500.0,0.00054794,120]
[357273784,1743971075469,-500.0,0.00054794,120]
[357273785,1743971075512,-548.01,0.00054794,120]
[357273786,1743971075550,-500.0,0.00054794,120]
[357273787,1743971075587,-500.0,0.00054794,120]
[357273788,1743971075623,-500.0,0.00054794,120]
[357273789,1743971075659,-174.66369269,0.00054794,120]
[357273790,1743971075696,-1101.5,0.00054794,120]
[357273791,1743971075734,-500.0,0.00054794,120]
[357273792,1743971075771,-296.96417144,0.00054794,120]
[357273793,1743971075806,-929.34,0.00054794,120]
[357273794,1743971075841,-704.29,0.00054794,120]
[357273795,1743971075876,-500.0,0.00054794,120]
[357273796,1743971075911,-554.08,0.00054794,120]
[357273797,1743971075945,-500.0,0.00054794,120]
[357273798,1743971075980,-981.43,0.00054794,120]
[357273799,1743971076015,-500.0,0.00054794,120]
[357273800,1743971076050,-500.0,0.00054794,120]
[357273801,1743971076085,-500.0,0.00054794,120]
[357273802,1743971076120,-634.57,0.00054794,120]
[357273803,1743971076156,-500.0,0.00054794,120]
[357273804,1743971076192,-503.51944324,0.00054794,120]
[357273805,1743971076355,-500.0,0.00054794,120]
[357273806,1743971076396,-21905.37,0.00054794,120]
[357273807,1743971076441,-500.0,0.00054794,120]
[357273808,1743971076483,-500.0,0.00054794,120]
[357273809,1743971076524,-500.0,0.00054794,120]
[357273810,1743971076563,-500.0,0.00054794,120]
[357273811,1743971076605,-500.0,0.00054794,120]
[357273812,1743971076646,-500.0,0.00054794,120]
[357273813,1743971076687,-500.0,0.00054794,120]
[357273814,1743971076724,-500.0,0.00054794,120]
[357273815,1743971076762,-500.0,0.00054794,120]
[357273816,1743971076798,-500.0,0.00054794,120]
[357273817,1743971076833,-500.0,0.00054794,120]
[357273818,1743971076868,-500.0,0.00054794,120]
[357273819,1743971076904,-532.77,0.00054794,120]
[357273820,1743971076939,-500.0,0.00054794,120]
[357273821,1743971076973,-649.96,0.00054794,120]
[357273822,1743971077010,-500.0,0.00054794,120]
[357273823,1743971077046,-500.0,0.00054794,120]
[357273824,1743971077080,-500.0,0.00054794,120]
[357273825,1743971077118,-593.87,0.00054794,120]
[357273826,1743971077153,-500.0,0.00054794,120]
[357273827,1743971077191,-368.00146316,0.00054794,120]
[357273828,1743971077227,-500.0,0.00054794,120]
[357273829,1743971077262,-1569.18,0.00054794,120]
[357273830,1743971077298,-500.0,0.00054794,120]
[357273831,1743971077334,-500.0,0.00054794,120]
[357273832,1743971077369,-500.0,0.00054794,120]
[357273833,1743971077407,-1168.54,0.00054794,120]
[357273834,1743971077443,-500.0,0.00054794,120]
[357273835,1743971077480,-500.0,0.00054794,120]
[357273836,1743971077516,-500.0,0.00054794,120]
[357273837,1743971077551,-733.34,0.00054794,100]
[357273838,1743971077587,-213.11201475,0.00054794,120]
[357273839,1743971077621,-249.02825531,0.00054794,120]
[357273840,1743971077658,-543.78,0.00054794,120]
[357273841,1743971077717,-500.0,0.00054794,120]
[357273842,1743971077777,-500.0,0.00054794,120]
[357273843,1743971077842,-500.0,0.00054794,120]
[357273844,1743971077903,-1277.34,0.00054794,120]
[357273845,1743971077961,-500.0,0.00054794,120]
[357273846,1743971078016,-357.77789253,0.00054794,120]
[357273847,1743971078068,-500.0,0.00054794,120]
[357273848,1743971078122,-157.39349072,0.00054794,120]
[357273849,1743971078176,-500.0,0.00054794,120]
[357273850,1743971078233,-500.0,0.00054794,120]
[357273851,1743971078288,-500.0,0.00054794,120]
[357273852,1743971078347,-500.0,0.00054794,120]
[357273853,1743971078405,-500.0,0.00054794,120]
[357273854,1743971078464,-587.24,0.00054794,120]
[357273855,1743971078519,-500.0,0.00054794,120]
[357273856,1743971078570,-500.0,0.00054794,120]
[357273857,1743971078621,-500.0,0.00054794,120]
[357273858,1743971078673,-732.01,0.00054794,120]
[357273859,1743971078725,-2061.33,0.00054794,120]
[357273860,1743971078774,-775.81,0.00054794,120]
[357273861,1743971078823,-500.0,0.00054794,120]
[357273862,1743971078872,-500.0,0.00054794,120]
[357273863,1743971078922,-500.0,0.00054794,120]
[357273864,1743971078970,-500.0,0.00054794,120]
[357273865,1743971079007,-500.0,0.00054794,120]
[357273866,1743971079043,-786.35,0.00054794,120]
[357273867,1743971079082,-309.23854333,0.00054794,120]
[357273868,1743971079120,-500.0,0.00054794,120]
[357273869,1743971079157,-500.0,0.00054794,120]
[357273870,1743971079192,-500.0,0.00054794,120]
[357273871,1743971079228,-500.0,0.00054794,120]
[357273872,1743971079266,-650.89,0.00054794,120]
[357273873,1743971079304,-500.0,0.00054794,120]
[357273874,1743971079342,-500.0,0.00054794,120]
[357273875,1743971079378,-500.0,0.00054794,120]
[357273876,1743971079416,-500.0,0.00054794,120]
[357273877,1743971079794,-500.0,0.00054794,120]
[357273878,1743971079863,-500.0,0.00054794,30]
[357273879,1743971079901,-500.0,0.00054794,120]
[357273880,1743971079939,-500.0,0.00054794,120]
[357273881,1743971079979,-500.0,0.00054794,120]
[357273882,1743971080016,-758.38,0.00054794,120]
[357273883,1743971080052,-500.0,0.00054794,120]
[357273884,1743971080088,-500.0,0.00054794,120]
[357273885,1743971080123,-567.39404217,0.00054794,120]
[357273886,1743971080159,-700.23,0.00054794,120]
[357273887,1743971080194,-500.0,0.00054794,120]
[357273888,1743971080230,-742.48,0.00054794,120]
[357273889,1743971080267,-500.0,0.00054794,120]
[357273890,1743971080302,-500.0,0.00054794,120]
[357273891,1743971080338,-500.0,0.00054794,120]
[357273892,1743971080372,-500.0,0.00054794,120]
[357273893,1743971080411,-500.0,0.00054794,120]
[357273894,1743971080450,-2723.45,0.00054794,120]
[357273895,1743971080486,-500.0,0.00054794,120]
[357273896,1743971080522,-515.63,0.00054794,120]
[357273897,1743971080556,-246.28823806,0.00054794,120]
[357273898,1743971080591,-500.0,0.00054794,120]
[357273899,1743971080627,-702.65,0.00054794,120]
[357273900,1743971080663,-500.0,0.00054794,120]
[357273901,1743971080698,-541.4206104,0.00054794,120]
[357273902,1743971080734,-500.0,0.00054794,120]
[357273903,1743971080769,-500.0,0.00054794,120]
[357273904,1743971080804,-519.60221028,0.00054794,120]
[357273905,1743971080838,-500.0,0.00054794,120]
[357273906,1743971080872,-500.0,0.00054794,120]
[357273907,1743971080905,-500.0,0.00054794,120]
[357273908,1743971080939,-500.0,0.00054794,120]
[357273909,1743971080973,-500.0,0.00054794,120]
[357273910,1743971081007,-500.0,0.00054794,120]
[357273911,1743971081040,-500.0,0.00054794,30]
[357273912,1743971081074,-188.6878042,0.00054794,120]
[357273913,1743971081108,-500.0,0.00054794,120]
[357273914,1743971081145,-762.64,0.00054794,120]
[357273915,1743971081180,-500.0,0.00054794,120]
[357273916,1743971081216,-500.0,0.00054794,120]
[357273917,1743971081251,-500.0,0.00054794,120]
[357273918,1743971081286,-525.9396167,0.00054794,120]
[357273919,1743971081323,-500.0,0.00054794,120]
[357273920,1743971081359,-500.0,0.00054794,120]
[357273921,1743971081397,-500.0,0.00054794,120]
[357273922,1743971081433,-500.0,0.00054794,120]
[357273923,1743971081469,-500.0,0.00054794,120]
[357273924,1743971081505,-990.53,0.00054794,120]
[357273925,1743971081540,-1085.28,0.00054794,120]
[357273926,1743971081576,-454.4597073,0.00054794,120]
[357273927,1743971081611,-500.0,0.00054794,120]
[357273928,1743971081646,-500.0,0.00054794,120]
[357273929,1743971081681,-500.0,0.00054794,120]
[357273930,1743971081717,-199.99,0.00054795,30]
[357273931,1743971081752,-151.0,0.00054795,120]
[357273932,1743971081787,-151.0,0.00054795,120]
[357273933,1743971081820,-151.0,0.00054795,120]
[357273934,1743971081853,-151.0,0.00054795,120]
[357273935,1743971081886,-151.0,0.00054795,120]
[357273936,1743971081920,-151.0,0.00054795,120]
[357273937,1743971081954,-189.163541,0.00054795,120]
[357273938,1743971081987,-150.0,0.00054795,120]
[357273939,1743971082019,-150.0,0.00054795,120]
[357273940,1743971082052,-150.0,0.00054795,120]
[357273941,1743971082084,-150.0,0.00054795,120]
[357273942,1743971082119,-150.0,0.00054795,120]
[357273943,1743971082152,-248.70424276,0.00054795,120]
[357273944,1743971082187,-500.0,0.00054795,120]
[357273945,1743971082223,-500.0,0.00054795,120]
[357273946,1743971082256,-500.0,0.00054795,120]
[357273947,1743971082290,-903.1807926,0.00054795,120]
[357273948,1743971082324,-500.0,0.00054795,120]
[357273949,1743971082358,-500.0,0.00054795,120]
[357273950,1743971082393,-500.0,0.00054795,120]
[357273951,1743971082429,-500.0,0.00054795,120]
[357273952,1743971082464,-500.0,0.00054795,120]
[357273953,1743971082501,-500.0,0.00054795,120]
[357273954,1743971082537,-500.0,0.00054795,120]
[357273955,1743971082574,-500.0,0.00054795,120]
[357273956,1743971082610,-998.95290104,0.00054795,120]
[357273957,1743971082646,-150.0,0.00054795,120]
[357273958,1743971082682,-150.0,0.00054795,120]
[357273959,1743971082837,-150.0,0.00054795,120]
[357273960,1743971082886,-150.0,0.00054795,120]
[357273961,1743971082924,-150.0,0.00054795,120]
[357273962,1743971082960,-248.93496903,0.00054795,120]
[357273963,1743971082995,-500.0,0.00054795,120]
[357273964,1743971083029,-500.0,0.00054795,120]
[357273965,1743971083064,-618.2555719,0.00054795,120]
[357273966,1743971083098,-179.80617465,0.00054795,120]
[357273967,1743971083134,-204.49438111,0.000548,120]
[357273968,1743971083169,-172.85850053,0.000548,120]
[357273969,1743971083205,-15000.0,0.000549,120]
[357273970,1743971083239,-166.37,0.000549,120]
[357273971,1743971083275,-997.68,0.000549,120]
[357273972,1743971083311,-1408.56,0.000549,120]
[357273973,1743971083348,-187.87805167,0.000549,32]
[357273974,1743971083389,-166.65666667,0.00054932,120]
[357273975,1743971083433,-152233.22658013,0.00054987,120]
[357273976,1743971083479,-250.0,0.00054989,120]
[357273977,1743971083523,-50000.0,0.00055,55]
[357273978,1743971083563,-850115.33954759,0.00055,120]
[357273979,1743971133495,382.937937,0.00039431,30]
[357273980,1743971137049,51153.90803865,0.00019,2]
[357273981,1743971170963,150.21601672,0.00039431,30]
[357273984,1743971254661,-3865.67052606,0.000199,3]
[357273985,1743971254682,-169.36890936,0.000199,2]
[357273986,1743971254704,-3183.93122678,0.0001995,2]
[357273987,1743971254726,-250.0,0.0001997,2]
[357273988,1743971254748,-6246.1609151,0.0001999,2]
[357273989,1743971254770,-38527.62,0.00019999,2]
[357273990,1743971254797,-641682.2484227,0.0002,2]
[357273991,1743971282232,1101.32679177,0.000181,2]
[357273992,1743971284186,1534303.91369111,0.00015,2]
[357273993,1743971284214,50000.0,0.00015,2]
[357273994,1743971284242,50000.0,0.00015,2]
[357273995,1743971284272,50000.0,0.00015,2]
[357273996,1743971284301,50000.0,0.00015,2]
[357273997,1743971284335,50000.0,0.00015,2]
[357273998,1743971284365,50000.0,0.00015,2]
[357273999,1743971284394,50000.0,0.00015,2]
[357274000,1743971284424,50000.0,0.00015,2]
[357274001,1743971284473,3400.0,0.00015,2]
[357274002,1743971284504,121845.36639808,0.00015,2]
[357274006,1743971333209,-2145.189015,0.00019502,2]
[357274007,1743971333231,-800.0,0.000196,7]
[357274008,1743971333251,-3310.86003139,0.0001961,2]
[357274009,1743971333272,-1600.0,0.000197,7]
[357274010,1743971333294,-2400.0,0.000198,7]
[357274011,1743971333313,-3023.14598668,0.0001987,2]
[357274012,1743971333334,-3200.0,0.000199,7]
[357274013,1743971333354,-618.11885499,0.00019973,2]
[357274014,1743971333377,-350466.68611194,0.0002,2]
[357274015,1743971356879,382.937937,0.00039431,30]
[357274016,1743971362101,-500.0,0.00019973,2]
[357274017,1743971362129,-3897.011962,0.0002,2]
[357274018,1743971367340,432.28418889,0.00039431,30]
[357274019,1743971374629,423.12351694,0.00039431,30]
[357274020,1743971383495,379.993556,0.00039431,30]
[357274029,1743971421875,-297.87200981,0.000199,2]
[357274030,1743971421897,-300.0,0.00019999,2]
[357274031,1743971421919,-850.0,0.00019999,2]
[357274032,1743971421943,-90493.12799019,0.0002,2]
[357274044,1743971437953,-4265.34926458,0.000199,2]
[357274045,1743971437966,-245.79455075,0.0001999,2]
[357274046,1743971437977,-4032.29107791,0.0002,2]
[357274047,1743971438065,-91959.94759362,0.0002,2]
[357274048,1743971438135,-75715.95188286,0.0002,2]
[357274057,1743971438312,-143.22396193,0.0002,2]
[357274059,1743971438325,-798710.0,0.0002,2]
[357274248,1743971440180,-588.58661357,0.0002,2]
[357274299,1743971440665,-5.03720462,0.0002,2]
[357274523,1743971443789,-1681.52192714,0.0002,2]
[357274530,1743971445445,250.0,0.00039467,120]
[357274535,1743971446137,-2043.77303028,0.0002,2]
[357274536,1743971446349,-404258.14143559,0.0002,2]
[357274537,1743971446409,-1999.40879958,0.0002,2]
[357274538,1743971446550,-75.17253877,0.0002,2]
[357274539,1743971446562,-1001.6419596,0.0002,2]
[357274540,1743971446581,-1875.46526701,0.0002,2]
[357274552,1743971532279,-1290.293648,0.000198,2]
[357274553,1743971532303,-158.65136505,0.000199,2]
[357274554,1743971532326,-506.75246483,0.00019973,2]
[357274555,1743971532349,-300.0,0.00019999,2]
[357274556,1743971532373,-724579.30252212,0.0002,2]
[357274558,1743971720030,200.0,0.00032,120]
[357274559,1743971740345,174.0,0.00013699,2]
[357274561,1743971752095,200.0,0.00033,120]
[357274562,1743971796548,200.0,0.00039452,30]
[357274564,1743971824454,151.0,0.00039452,30]
[357274565,1743971825089,151.0,0.00039452,30]
[357274566,1743971825774,151.0,0.00039452,30]
[357274567,1743971826414,151.0,0.00039452,30]
[357274568,1743971827044,151.0,0.00039452,30]
[357274569,1743971827799,151.0,0.00039452,30]
[357274571,1743971828429,151.0,0.00039452,30]
[357274572,1743971828468,3046.85,7.945e-05,2]
[357274573,1743971829060,151.0,0.00039452,30]
[357274574,1743971829711,151.0,0.00039452,30]
[357274575,1743971830332,151.0,0.00039452,30]
[357274576,1743971830963,151.0,0.00039452,30]
[357274577,1743971831581,151.0,0.00039452,30]
[357274579,1743971832284,151.0,0.00039452,30]
[357274581,1743971832930,151.0,0.00039452,30]
[357274582,1743971833595,151.0,0.00039452,30]
[357274583,1743971834471,151.0,0.00039452,30]
[357274584,1743971834884,151.0,0.00039452,30]
[357274585,1743971835504,151.0,0.00039452,30]
[357274586,1743971836141,151.0,0.00039452,30]
[357274587,1743971836819,151.0,0.00039452,30]
[357274588,1743971839237,151.0,0.00039452,30]
[357274589,1743971840447,156.587,0.00039452,30]
[357274590,1743971841104,162.380719,0.00039452,30]
[357274591,1743971841731,168.3888056,0.00039452,30]
[357274592,1743971842357,174.61919141,0.00039452,30]
[357274593,1743971842986,181.08010149,0.00039452,30]
[357274594,1743971843619,187.78006525,0.00039452,30]
[357274595,1743971844223,194.72792766,0.00039452,30]
[357274596,1743971844868,201.93286099,0.00039452,30]
[357274597,1743971845515,209.40437684,0.00039452,30]
[357274598,1743971846129,217.15233878,0.00039452,30]
[357274599,1743971846761,225.18697532,0.00039452,30]
[357274600,1743971847390,225.18697532,0.00039452,30]
[357274601,1743971849900,500.0,0.00039452,30]
[357274602,1743971851123,518.5,0.00039452,30]
[357274603,1743971851783,537.6845,0.00039452,30]
[357274604,1743971852442,557.5788265,0.00039452,30]
[357274605,1743971853079,578.20924308,0.00039452,30]
[357274606,1743971853750,599.60298507,0.00039452,30]
[357274607,1743971854394,621.78829552,0.00039452,30]
[357274608,1743971855074,644.79446246,0.00039452,30]
[357274609,1743971855648,668.65185757,0.00039452,30]
[357274610,1743971856408,693.3919763,0.00039452,30]
[357274611,1743971857011,719.04747942,0.00039452,30]
[357274612,1743971857633,745.65223616,0.00039452,30]
[357274613,1743971858273,773.2413689,0.00039452,30]
[357274614,1743971858943,801.85129955,0.00039452,30]
[357274615,1743971859628,831.51979763,0.00039452,30]
[357274616,1743971860514,862.28603014,0.00039452,30]
[357274617,1743971871518,894.19061326,0.00039452,30]
[357274618,1743971872161,894.19061326,0.00039452,30]
[357274619,1743971947049,254.0,0.00039452,31]
[357274620,1743971947337,253.0,0.00039452,31]
[357274621,1743972124537,151.0,0.00039435,30]
[357274622,1743972125155,151.0,0.00039435,30]
[357274623,1743972125798,151.0,0.00039435,30]
[357274624,1743972126428,151.0,0.00039435,30]
[357274625,1743972127076,151.0,0.00039435,30]
[357274626,1743972137162,244.0,0.00039435,30]
[357274627,1743972184883,831.23,0.00032932,120]
[357274628,1743972281947,1500.0,0.00032877,120]
[357274629,1743972290091,320.22,0.00026163,120]
[357274630,1743972290512,320.22,0.00029433,120]
[357274631,1743972290603,320.22,0.00032704,120]
[357274754,1743972575744,387.46,0.00026137,120]
[357274785,1743972632392,-0.74416545,0.00018622,2]
[357274786,1743972632416,-173.34583455,0.00018622,2]
[357274787,1743972632426,-250.0,0.00019,2]
[357274788,1743972632435,-170.25975168,0.00019,2]
[357274789,1743972632568,-51.19940219,0.00019,2]
[357274790,1743972632578,-250.0,0.00019387,2]
[357274791,1743972632589,-5.41631261,0.00019775,2]
[357274792,1743972636389,-167.52495439,0.00019775,2]
[357274793,1743972636399,-1284.0138007,0.00019889,2]
[357274794,1743972636409,-1284.01380068,0.00019899,2]
[357274795,1743972636419,-500.0,0.00019973,2]
[357274796,1743972636428,-150.0,0.00019973,2]
[357274797,1743972636438,-300.0,0.00019989,2]
[357274798,1743972636447,-4254.44744423,0.0001999,2]
[357274801,1743972636459,-789.56277393,0.0001999,2]
[357274868,1743972638387,-619.80901668,0.0001999,2]
[357274869,1743972638402,-553.57465784,0.0001999,2]
[357274870,1743972638416,-295.47199871,0.0001999,2]
[357274871,1743972638428,-908.105,0.0001999,2]
[357274872,1743972638441,-377.28,0.0001999,2]
[357274873,1743972638535,-13494.95672194,0.0001999,2]
[357274874,1743972638545,-850.0,0.00019999,2]
[357274875,1743972638555,-738.27143806,0.0002,2]
[357274876,1743972638579,-2875.0,0.0002,2]
[357274877,1743972638591,-1876.5003,0.0002,2]
[357274878,1743972638606,-630.64163663,0.0002,2]
[357274879,1743972638628,-2369.0477407,0.0002,2]
[357274880,1743972638639,-782.35392,0.0002,2]
[357274881,1743972638686,-396.39600128,0.0002,2]
[357274998,1743972640633,-516.8250225,0.0002,2]
[357275008,1743972640731,-277.92714269,0.0002,2]
[357275023,1743972640868,-7826.69703963,0.0002,2]
[357275029,1743972640921,-1213.34787324,0.0002,2]
[357275031,1743972640932,-1177.06568295,0.0002,2]
[357275038,1743972640994,-107.80199068,0.0002,2]
[357275041,1743972641005,-2184.20675603,0.0002,2]
[357275430,1743972644460,-12205.57652716,0.0002,2]
[357275432,1743972644470,-19372.09860048,0.0002,2]
[357275434,1743972644481,-10540.96213968,0.0002088,2]
[357275436,1743972644490,-4851.07818046,0.000209,2]
[357275438,1743972644500,-250.0,0.000209,2]
[357275440,1743972644509,-584.91858754,0.00020973,2]
[357275442,1743972644519,-500.0,0.00020973,2]
[357275444,1743972644528,-503.54707972,0.00020973,2]
[357275446,1743972644537,-500.0,0.00020973,2]
[357275448,1743972644547,-98845.41480932,0.00021,2]
[357275450,1743972644556,-300.0,0.00021,2]
[357275452,1743972644565,-150.0,0.00021917,2]
[357275454,1743972644575,-4723.48,0.00022615,2]
[357275456,1743972644584,-350.0,0.00023,2]
[357275458,1743972644595,-174.09,0.00023277,2]
[357275460,1743972644605,-150.0,0.00023287,2]
[357275462,1743972644615,-2301.13,0.00023494,2]
[357275463,1743972644624,-163.93,0.00023976,2]
[357275465,1743972644634,-308.66,0.00023977,2]
[357275467,1743972644645,-871.79,0.00024256,2]
[357275470,1743972644665,-4851.07818046,0.00024533,2]
[357275472,1743972644675,-150.0,0.00024657,2]
[357275475,1743972644688,-250.0,0.00024817,2]
[357275477,1743972644697,-1037.51,0.0002489,2]
[357275479,1743972644707,-1011.93527606,0.00024899,10]
[357275481,1743972644717,-163.93,0.00024965,2]
[357275483,1743972644727,-23900.0,0.00024971,2]
[357275485,1743972644737,-400.0,0.00025,2]
[357275487,1743972644746,-2751.0,0.00025216,2]
[357275489,1743972644756,-1000.0,0.00025292,2]
[357275491,1743972644765,-1141.73078038,0.00025343,2]
[357275493,1743972644774,-618.49675777,0.00025452,2]
[357275495,1743972644784,-3408.58456788,0.00025555,2]
[357275497,1743972644797,-29111.87543212,0.00025555,2]
[357275499,1743972644806,-501.40046181,0.000256,2]
[357275501,1743972644816,-525.62100968,0.0002595,2]
[357275503,1743972644825,-163.93,0.00025954,2]
[357275505,1743972644835,-500.0,0.00025967,2]
[357275507,1743972644845,-150.0,0.00026027,2]
[357275509,1743972644854,-402.35961496,0.00026452,2]
[357275511,1743972644865,-214.84,0.00026464,2]
[357275513,1743972644875,-871.79,0.0002652,2]
[357275515,1743972644885,-172.77,0.00026849,2]
[357275517,1743972644895,-152.48,0.00026849,2]
[357275519,1743972644904,-318.21830189,0.00026853,2]
[357275521,1743972644914,-500.71468123,0.00026853,2]
[357275523,1743972644924,-501.54585251,0.00026853,2]
[357275525,1743972644934,-152.44881058,0.00026853,2]
[357275527,1743972644945,-500.48992386,0.00026853,2]
[357275529,1743972644955,-502.19994835,0.00026853,2]
[357275531,1743972644964,-500.0,0.00026853,2]
[357275533,1743972644975,-184.61,0.00026865,2]
[357275536,1743972644987,-163.93,0.00026944,2]
[357275538,1743972644999,-500.0,0.00026946,2]
[357275539,1743972645011,-154.05179552,0.00026946,2]
[357275542,1743972645021,-500.0,0.00026946,2]
[357275543,1743972645031,-500.0,0.00026946,2]
[357275546,1743972645041,-500.0,0.00026946,2]
[357275548,1743972645051,-450.0,0.00027,2]
[357275550,1743972645060,-501.92710556,0.00027047,2]
[357275552,1743972645070,-501.54245116,0.0002715,2]
[357275554,1743972645079,-505.9650105,0.0002715,2]
[357275556,1743972645089,-155.43,0.00027364,2]
[357275558,1743972645098,-155.43,0.00027376,2]
[357275560,1743972645108,-155.43,0.00027387,2]
[357275562,1743972645117,-380.11257616,0.00027388,2]
[357275564,1743972645128,-248.01544304,0.00027388,2]
[357275565,1743972645137,-150.0,0.00027397,2]
[357275567,1743972645147,-497.5,0.00027397,2]
[357275570,1743972645157,-155.43,0.00027398,2]
[357275572,1743972645167,-155.43,0.0002741,2]
[357275573,1743972645176,-155.43,0.00027421,2]
[357275576,1743972645186,-501.42009875,0.00027425,5]
[357275577,1743972645196,-155.43,0.00027433,2]
[357275579,1743972645205,-155.43,0.00027444,2]
[357275581,1743972645214,-155.43,0.00027455,2]
[357275584,1743972645224,-155.43,0.00027467,2]
[357275586,1743972645235,-155.43,0.00027478,2]
[357275587,1743972645244,-155.43,0.0002749,2]
[357275590,1743972645254,-155.43,0.00027501,2]